fUSD/lending_fUSD_20250105
["ID","MTS","AMOUNT","RATE_DAILY","PERIOD"]
[347700855,1736073101831,-500.0,9.589e-05,2]
[347700856,1736073101840,-500.0,9.589e-05,2]
[347700857,1736073101849,-500.0,9.589e-05,2]
[347700858,1736073101859,-501.65991163,9.589e-05,2]
[347700859,1736073101869,-1227.14,9.589e-05,2]
[347700860,1736073101878,-500.0,9.589e-05,2]
[347700861,1736073101887,-818.43,9.589e-05,2]
[347700862,1736073101896,-5808.82,9.589e-05,2]
[347700863,1736073101905,-500.0,9.589e-05,2]
[347700864,1736073101914,-1302.7,9.589e-05,2]
[347700865,1736073101923,-500.0,9.589e-05,2]
[347700866,1736073101932,-500.0,9.589e-05,2]
[347700867,1736073101942,-2458.16,9.589e-05,2]
[347700868,1736073101952,-500.0,9.589e-05,2]
[347700869,1736073101963,-1754.43,9.589e-05,2]
[347700870,1736073101973,-675.0,9.589e-05,2]
[347700871,1736073101983,-500.0,9.589e-05,2]
[347700872,1736073101992,-500.0,9.589e-05,2]
[347700873,1736073102002,-514.78,9.589e-05,2]
[347700874,1736073102011,-1304.1,9.589e-05,2]
[347700875,1736073102021,-500.0,9.589e-05,2]
[347700876,1736073102030,-500.0,9.589e-05,2]
[347700877,1736073102041,-500.0,9.589e-05,2]
[347700878,1736073102051,-5387.26,9.589e-05,2]
[347700879,1736073102060,-500.0,9.589e-05,2]
[347700880,1736073102070,-3629.76,9.589e-05,2]
[347700881,1736073102080,-500.0,9.589e-05,2]
[347700882,1736073102091,-1360.04,9.589e-05,2]
[347700883,1736073102100,-3235.55,9.589e-05,2]
[347700884,1736073102109,-965.04,9.589e-05,2]
[347700885,1736073102120,-500.0,9.589e-05,2]
[347700886,1736073102129,-500.0,9.589e-05,2]
[347700887,1736073102140,-500.0,9.589e-05,2]
[347700888,1736073102149,-8457.77,9.589e-05,2]
[347700889,1736073102158,-500.0,9.589e-05,2]
[347700890,1736073102167,-500.0,9.589e-05,2]
[347700891,1736073102176,-1619.88,9.589e-05,2]
[347700892,1736073102185,-500.0,9.589e-05,2]
[347700893,1736073102194,-500.0,9.589e-05,2]
[347700894,1736073102203,-500.0,9.589e-05,2]
[347700895,1736073102212,-303.27239937,9.589e-05,2]
[347700896,1736073102221,-500.0,9.589e-05,2]
[347700897,1736073102230,-500.0,9.589e-05,2]
[347700898,1736073102240,-568.76,9.589e-05,2]
[347700899,1736073102249,-241.07608597,9.589e-05,2]
[347700900,1736073102259,-1821.63,9.589e-05,2]
[347700901,1736073102268,-500.0,9.589e-05,2]
[347700902,1736073102277,-4062.07,9.589e-05,2]
[347700903,1736073102287,-3994.03,9.589e-05,2]
[347700904,1736073102297,-5788.17,9.589e-05,2]
[347700905,1736073102306,-500.0,9.589e-05,2]
[347700906,1736073102315,-573.65,9.589e-05,2]
[347700907,1736073102324,-2653.92,9.589e-05,2]
[347700908,1736073102333,-1496.52,9.589e-05,2]
[347700909,1736073102342,-1155.87,9.589e-05,2]
[347700910,1736073102351,-1368.79,9.589e-05,2]
[347700911,1736073102360,-5039.88,9.589e-05,2]
[347700912,1736073102369,-500.0,9.589e-05,2]
[347700913,1736073102378,-2154.25,9.589e-05,2]
[347700914,1736073102387,-155.442969,9.589e-05,2]
[347700915,1736073102396,-622.79,9.589e-05,2]
[347700916,1736073102405,-500.0,9.589e-05,2]
[347700917,1736073102414,-1020.47,9.589e-05,2]
[347700918,1736073102423,-4106.66,9.589e-05,2]
[347700919,1736073102433,-1726.03,9.589e-05,2]
[347700920,1736073102442,-501.5324157,9.589e-05,2]
[347700921,1736073102451,-12142.01,9.589e-05,2]
[347700922,1736073102461,-6672.98,9.589e-05,2]
[347700923,1736073102470,-500.0,9.589e-05,2]
[347700924,1736073102479,-950.85,9.589e-05,2]
[347700925,1736073102487,-1159.36,9.589e-05,2]
[347700926,1736073102496,-500.0,9.589e-05,2]
[347700927,1736073102506,-500.0,9.589e-05,2]
[347700928,1736073102514,-1987.28,9.589e-05,2]
[347700929,1736073102524,-855.95,9.589e-05,2]
[347700930,1736073102533,-1460.51,9.589e-05,2]
[347700931,1736073102542,-514.365953,9.589e-05,2]
[347700932,1736073102552,-3002.76,9.589e-05,2]
[347700933,1736073102562,-500.0,9.589e-05,2]
[347700934,1736073102572,-500.0,9.589e-05,2]
[347700935,1736073102582,-586.93,9.589e-05,2]
[347700936,1736073102591,-502.35385902,9.589e-05,2]
[347700937,1736073102600,-500.0,9.589e-05,2]
[347700938,1736073102609,-500.0,9.589e-05,2]
[347700939,1736073102619,-500.0,9.589e-05,2]
[347700940,1736073102633,-500.0,9.589e-05,2]
[347700941,1736073102643,-5216.95,9.589e-05,2]
[347700942,1736073102652,-500.0,9.589e-05,2]
[347700943,1736073102662,-563.48773912,9.589e-05,2]
[347700944,1736073102674,-500.0,9.589e-05,2]
[347700945,1736073102682,-830.94,9.589e-05,2]
[347700946,1736073102692,-6065.56,9.589e-05,2]
[347700947,1736073102702,-500.0,9.589e-05,2]
[347700948,1736073102713,-2001.97,9.589e-05,2]
[347700949,1736073102723,-1245.32,9.589e-05,2]
[347700950,1736073102734,-1038.806774,9.589e-05,2]
[347700951,1736073102743,-500.0,9.589e-05,2]
[347700952,1736073102753,-888.76,9.589e-05,2]
[347700953,1736073102762,-683.25,9.589e-05,2]
[347700954,1736073102772,-500.0,9.589e-05,2]
[347700955,1736073102782,-500.0,9.589e-05,2]
[347700956,1736073102792,-1777.99,9.589e-05,2]
[347700957,1736073102801,-500.0,9.589e-05,2]
[347700958,1736073102811,-537.34,9.589e-05,2]
[347700959,1736073102820,-500.0,9.589e-05,2]
[347700960,1736073102829,-500.0,9.589e-05,2]
[347700961,1736073102840,-697.87,9.589e-05,2]
[347700962,1736073102849,-500.0,9.589e-05,2]
[347700963,1736073102857,-500.0,9.589e-05,2]
[347700964,1736073102866,-2094.35,9.589e-05,2]
[347700965,1736073102875,-526.43,9.589e-05,2]
[347700966,1736073102885,-867.33,9.589e-05,2]
[347700967,1736073102895,-4670.12,9.589e-05,2]
[347700968,1736073102904,-764.62,9.589e-05,2]
[347700969,1736073102913,-500.0,9.589e-05,2]
[347700970,1736073102922,-500.0,9.589e-05,2]
[347700971,1736073102932,-1804.74,9.589e-05,2]
[347700972,1736073102941,-500.0,9.589e-05,2]
[347700973,1736073102952,-2908.32,9.589e-05,2]
[347700974,1736073102962,-503.07701345,9.589e-05,2]
[347700975,1736073102972,-500.0,9.589e-05,2]
[347700976,1736073102982,-1318.92,9.589e-05,2]
[347700977,1736073102991,-1369.41,9.589e-05,2]
[347700978,1736073103001,-500.0,9.589e-05,2]
[347700979,1736073103011,-500.0,9.589e-05,2]
[347700980,1736073103020,-500.0,9.589e-05,2]
[347700981,1736073103029,-500.0,9.589e-05,2]
[347700982,1736073103038,-500.0,9.589e-05,2]
[347700983,1736073103047,-500.0,9.589e-05,2]
[347700984,1736073103056,-4502.35,9.589e-05,2]
[347700985,1736073103065,-1315.12,9.589e-05,2]
[347700986,1736073103073,-751.41,9.589e-05,2]
[347700987,1736073103082,-500.0,9.589e-05,2]
[347700988,1736073103091,-500.0,9.589e-05,2]
[347700989,1736073103101,-250.2,9.62e-05,2]
[347700990,1736073103110,-167.12,9.64e-05,2]
[347700991,1736073103119,-631.43,9.643e-05,2]
[347700992,1736073103128,-241.25998616,9.684e-05,5]
[347700993,1736073103137,-331.483,9.7e-05,2]
[347700994,1736073103148,-631.43,9.78e-05,2]
[347700995,1736073103158,-500.0,9.788e-05,2]
[347700996,1736073103167,-500.0,9.788e-05,2]
[347700997,1736073103178,-1287.52,9.788e-05,2]
[347700998,1736073103187,-2496.37,9.788e-05,2]
[347700999,1736073103196,-2796.19,9.788e-05,2]
[347701000,1736073103205,-1853.74,9.788e-05,2]
[347701001,1736073103214,-3951.49,9.788e-05,2]
[347701002,1736073103224,-1766.82,9.788e-05,2]
[347701003,1736073103233,-3384.14,9.788e-05,2]
[347701004,1736073103242,-3722.48,9.788e-05,2]
[347701005,1736073103251,-500.0,9.788e-05,2]
[347701006,1736073103260,-2401.98,9.788e-05,2]
[347701007,1736073103269,-5048.31,9.788e-05,2]
[347701008,1736073103278,-500.0,9.788e-05,2]
[347701009,1736073103287,-1548.23,9.788e-05,2]
[347701010,1736073103297,-2302.39,9.788e-05,2]
[347701011,1736073103306,-503.12654514,9.789e-05,2]
[347701012,1736073103315,-500.0,9.789e-05,2]
[347701013,1736073103323,-500.0,9.789e-05,2]
[347701014,1736073103332,-502.49831916,9.789e-05,2]
[347701015,1736073103341,-501.49842122,9.789e-05,2]
[347701016,1736073103350,-412.32,9.789e-05,2]
[347701017,1736073103359,-500.0,9.789e-05,2]
[347701018,1736073103368,-500.0,9.789e-05,2]
[347701019,1736073103377,-500.0,9.789e-05,2]
[347701020,1736073103385,-500.0,9.789e-05,2]
[347701021,1736073103394,-500.0,9.789e-05,2]
[347701022,1736073103403,-500.0,9.789e-05,2]
[347701023,1736073103412,-500.0,9.789e-05,2]
[347701024,1736073103420,-500.0,9.789e-05,2]
[347701025,1736073103429,-501.46760306,9.789e-05,2]
[347701026,1736073103438,-642.92,9.789e-05,2]
[347701027,1736073103447,-500.0,9.789e-05,2]
[347701028,1736073103456,-500.0,9.789e-05,2]
[347701029,1736073103465,-500.0,9.789e-05,2]
[347701030,1736073103474,-500.0,9.789e-05,2]
[347701031,1736073103483,-438.88,9.789e-05,2]
[347701032,1736073103492,-500.0,9.789e-05,2]
[347701033,1736073103501,-500.0,9.789e-05,2]
[347701034,1736073103511,-500.0,9.789e-05,2]
[347701035,1736073103520,-500.0,9.789e-05,2]
[347701036,1736073103530,-500.0,9.789e-05,2]
[347701037,1736073103539,-607.01,9.789e-05,2]
[347701038,1736073103549,-500.0,9.789e-05,2]
[347701039,1736073103559,-500.0,9.789e-05,2]
[347701040,1736073103568,-500.0,9.789e-05,2]
[347701041,1736073103577,-500.0,9.789e-05,2]
[347701042,1736073103586,-466.96,9.789e-05,2]
[347701043,1736073103596,-500.0,9.789e-05,2]
[347701044,1736073103605,-500.0,9.789e-05,2]
[347701045,1736073103614,-500.0,9.789e-05,2]
[347701046,1736073103627,-500.0,9.789e-05,2]
[347701047,1736073103636,-500.0,9.789e-05,2]
[347701048,1736073103645,-500.0,9.789e-05,2]
[347701049,1736073103654,-500.0,9.789e-05,2]
[347701050,1736073103664,-500.0,9.789e-05,2]
[347701051,1736073103673,-500.0,9.789e-05,2]
[347701052,1736073103683,-533.3109272,9.789e-05,2]
[347701053,1736073103692,-500.0,9.789e-05,2]
[347701054,1736073103704,-500.0,9.789e-05,2]
[347701055,1736073103714,-500.0,9.789e-05,2]
[347701056,1736073103724,-500.0,9.789e-05,2]
[347701057,1736073103734,-500.0,9.789e-05,2]
[347701058,1736073103743,-500.0,9.789e-05,2]
[347701059,1736073103938,-500.0,9.789e-05,2]
[347701060,1736073103948,-501.29182002,9.789e-05,2]
[347701061,1736073103957,-309.35847401,9.789e-05,2]
[347701062,1736073103967,-500.0,9.789e-05,2]
[347701063,1736073103976,-500.0,9.789e-05,2]
[347701064,1736073103985,-500.0,9.789e-05,2]
[347701065,1736073103994,-200.75965339,9.789e-05,2]
[347701066,1736073104003,-500.0,9.789e-05,2]
[347701067,1736073104012,-500.0,9.789e-05,2]
[347701068,1736073104022,-500.0,9.789e-05,2]
[347701069,1736073104031,-500.0,9.789e-05,2]
[347701070,1736073104040,-500.0,9.789e-05,2]
[347701071,1736073104050,-435.78270264,9.789e-05,2]
[347701072,1736073104060,-500.0,9.789e-05,2]
[347701073,1736073104069,-500.0,9.789e-05,2]
[347701074,1736073104078,-500.0,9.789e-05,2]
[347701075,1736073104087,-500.0,9.789e-05,2]
[347701076,1736073104097,-500.0,9.789e-05,2]
[347701077,1736073104106,-500.0,9.789e-05,2]
[347701078,1736073104115,-553.8,9.789e-05,2]
[347701079,1736073104124,-500.0,9.789e-05,2]
[347701080,1736073104134,-283.7779964,9.789e-05,2]
[347701081,1736073104144,-500.0,9.789e-05,2]
[347701082,1736073104153,-500.0,9.789e-05,2]
[347701083,1736073104162,-500.0,9.789e-05,2]
[347701084,1736073104172,-1031.44,9.789e-05,2]
[347701085,1736073104181,-500.0,9.789e-05,2]
[347701086,1736073104191,-500.0,9.789e-05,2]
[347701087,1736073104201,-580.64,9.789e-05,2]
[347701088,1736073104210,-500.0,9.789e-05,2]
[347701089,1736073104220,-500.0,9.789e-05,2]
[347701090,1736073104230,-246.98,9.789e-05,2]
[347701091,1736073104239,-500.0,9.789e-05,2]
[347701092,1736073104248,-500.0,9.789e-05,2]
[347701093,1736073104258,-500.0,9.789e-05,2]
[347701094,1736073104268,-500.0,9.789e-05,2]
[347701095,1736073104277,-500.0,9.789e-05,2]
[347701096,1736073104287,-746.64,9.789e-05,2]
[347701097,1736073104297,-500.0,9.789e-05,2]
[347701098,1736073104307,-500.0,9.789e-05,2]
[347701099,1736073104316,-500.0,9.789e-05,2]
[347701100,1736073104326,-500.0,9.789e-05,2]
[347701101,1736073104336,-500.0,9.789e-05,2]
[347701102,1736073104346,-500.0,9.789e-05,2]
[347701103,1736073104355,-509.4,9.789e-05,2]
[347701104,1736073104364,-1027.79,9.789e-05,2]
[347701105,1736073104375,-500.0,9.789e-05,2]
[347701106,1736073104386,-500.0,9.789e-05,2]
[347701107,1736073104396,-500.0,9.789e-05,2]
[347701108,1736073104405,-500.0,9.789e-05,2]
[347701109,1736073104414,-955.19,9.789e-05,2]
[347701110,1736073104423,-500.0,9.789e-05,2]
[347701111,1736073104434,-500.0,9.789e-05,2]
[347701112,1736073104443,-1012.21,9.789e-05,2]
[347701113,1736073104452,-500.0,9.789e-05,2]
[347701114,1736073104462,-648.98,9.789e-05,2]
[347701115,1736073104471,-500.0,9.789e-05,2]
[347701116,1736073104481,-1432.33,9.789e-05,2]
[347701117,1736073104491,-500.0,9.789e-05,2]
[347701118,1736073104501,-528.054592,9.789e-05,2]
[347701119,1736073104511,-797.47,9.789e-05,2]
[347701120,1736073104521,-500.0,9.789e-05,2]
[347701121,1736073104532,-572.3629831,9.789e-05,2]
[347701122,1736073104541,-500.0,9.789e-05,2]
[347701123,1736073104552,-564.16,9.789e-05,2]
[347701124,1736073104561,-500.0,9.789e-05,2]
[347701125,1736073104571,-737.61,9.789e-05,2]
[347701126,1736073104580,-500.0,9.789e-05,2]
[347701127,1736073104589,-1121.79,9.789e-05,2]
[347701128,1736073104598,-808.25,9.789e-05,2]
[347701129,1736073104608,-1264.32,9.789e-05,2]
[347701130,1736073104619,-500.0,9.789e-05,2]
[347701131,1736073104632,-840.01,9.789e-05,2]
[347701132,1736073104641,-500.0,9.789e-05,2]
[347701133,1736073104651,-733.47,9.789e-05,2]
[347701134,1736073104663,-500.0,9.789e-05,2]
[347701135,1736073104673,-985.72,9.789e-05,2]
[347701136,1736073104682,-500.0,9.789e-05,2]
[347701137,1736073104690,-500.0,9.789e-05,2]
[347701138,1736073104701,-500.0,9.789e-05,2]
[347701139,1736073104711,-733.53,9.789e-05,2]
[347701140,1736073104721,-2234.81,9.789e-05,2]
[347701141,1736073104731,-2402.49,9.789e-05,2]
[347701142,1736073104741,-2321.32,9.789e-05,2]
[347701143,1736073104750,-7447.44,9.789e-05,2]
[347701144,1736073104760,-1549.13,9.79e-05,2]
[347701145,1736073104770,-2589.06,9.79e-05,2]
[347701146,1736073104779,-573.13,9.79e-05,2]
[347701147,1736073104789,-1257.54,9.791e-05,2]
[347701148,1736073104800,-2275.91,9.791e-05,2]
[347701149,1736073104810,-540.13,9.791e-05,2]
[347701150,1736073104819,-641.97,9.791e-05,2]
[347701151,1736073104829,-500.0,9.791e-05,2]
[347701152,1736073104838,-857.91,9.791e-05,2]
[347701153,1736073104848,-3006.58,9.791e-05,2]
[347701154,1736073104858,-500.0,9.791e-05,2]
[347701155,1736073104867,-768.5,9.791e-05,2]
[347701156,1736073104876,-530.14,9.791e-05,2]
[347701157,1736073104886,-500.0,9.791e-05,2]
[347701158,1736073104895,-500.0,9.791e-05,2]
[347701159,1736073104904,-500.0,9.791e-05,2]
[347701160,1736073104913,-4053.78,9.791e-05,2]
[347701161,1736073104922,-4014.0,9.791e-05,2]
[347701162,1736073104932,-4459.71,9.791e-05,2]
[347701163,1736073104941,-1410.39,9.791e-05,2]
[347701164,1736073104950,-975.49,9.791e-05,2]
[347701165,1736073104960,-5299.75,9.791e-05,2]
[347701166,1736073104970,-18046.74,9.791e-05,2]
[347701167,1736073104979,-500.0,9.791e-05,2]
[347701168,1736073104988,-3870.36,9.791e-05,2]
[347701169,1736073104998,-500.0,9.791e-05,2]
[347701170,1736073105007,-2304.67,9.791e-05,2]
[347701171,1736073105017,-500.0,9.791e-05,2]
[347701172,1736073105026,-544.29,9.791e-05,2]
[347701173,1736073105035,-601.16,9.791e-05,2]
[347701174,1736073105044,-668.05,9.791e-05,2]
[347701175,1736073105058,-772.6,9.791e-05,2]
[347701176,1736073105067,-500.0,9.791e-05,2]
[347701177,1736073105076,-1000.0,9.791e-05,2]
[347701178,1736073105085,-1159.86,9.791e-05,2]
[347701179,1736073105095,-891.1,9.791e-05,2]
[347701180,1736073105104,-1017.91,9.791e-05,2]
[347701181,1736073105114,-1239.62,9.791e-05,2]
[347701182,1736073105123,-10010.79377231,9.8e-05,2]
[347701183,1736073105132,-182.86,9.836e-05,2]
[347701184,1736073105142,-1354.04,9.836e-05,2]
[347701185,1736073105151,-182.86,9.836e-05,2]
[347701186,1736073105160,-180.96,9.836e-05,2]
[347701187,1736073105169,-641.338,9.844e-05,2]
[347701188,1736073105178,-257.472,9.844e-05,2]
[347701189,1736073105188,-566.0,9.844e-05,2]
[347701190,1736073105199,-1860.0,9.844e-05,2]
[347701191,1736073105210,-834.0,9.844e-05,2]
[347701192,1736073105219,-1258.0,9.844e-05,2]
[347701193,1736073105229,-3785.104,9.844e-05,2]
[347701194,1736073105238,-1039.949,9.844e-05,2]
[347701195,1736073105247,-3722.0,9.844e-05,2]
[347701196,1736073105256,-552.585,9.844e-05,2]
[347701197,1736073105265,-1103.0,9.844e-05,2]
[347701198,1736073105274,-2014.0,9.844e-05,2]
[347701199,1736073105283,-3893.0,9.844e-05,2]
[347701200,1736073105292,-1267.0,9.844e-05,2]
[347701201,1736073105310,-150.0,9.844e-05,2]
[347701202,1736073105319,-151.158,9.844e-05,2]
[347701203,1736073105328,-636.0,9.844e-05,2]
[347701204,1736073105337,-817.29,9.863e-05,2]
[347701205,1736073105346,-500.0,9.863e-05,2]
[347701206,1736073105355,-511.28,9.863e-05,2]
[347701207,1736073105364,-500.0,9.863e-05,2]
[347701208,1736073105373,-303.77,9.863e-05,2]
[347701209,1736073105382,-500.0,9.863e-05,2]
[347701210,1736073105391,-500.0,9.863e-05,2]
[347701211,1736073105400,-500.0,9.863e-05,2]
[347701212,1736073105410,-500.0,9.863e-05,2]
[347701213,1736073105419,-500.0,9.863e-05,2]
[347701214,1736073105428,-649.27,9.863e-05,2]
[347701215,1736073105438,-831.44,9.863e-05,2]
[347701216,1736073105447,-500.0,9.863e-05,2]
[347701217,1736073105457,-500.0,9.863e-05,2]
[347701218,1736073105466,-500.0,9.863e-05,2]
[347701219,1736073105475,-500.0,9.863e-05,2]
[347701220,1736073105484,-500.0,9.863e-05,2]
[347701221,1736073105494,-821.89,9.863e-05,2]
[347701222,1736073105503,-500.0,9.863e-05,2]
[347701223,1736073105513,-500.0,9.863e-05,2]
[347701224,1736073105522,-500.0,9.863e-05,2]
[347701225,1736073105531,-634.54,9.863e-05,2]
[347701226,1736073105540,-500.0,9.863e-05,2]
[347701227,1736073105549,-500.0,9.863e-05,2]
[347701228,1736073105558,-500.0,9.863e-05,2]
[347701229,1736073105568,-219.31,9.863e-05,2]
[347701230,1736073105577,-500.0,9.863e-05,2]
[347701231,1736073105586,-501.99,9.863e-05,2]
[347701232,1736073105596,-500.0,9.863e-05,2]
[347701233,1736073105606,-500.0,9.863e-05,2]
[347701234,1736073105617,-500.0,9.863e-05,2]
[347701235,1736073105631,-649.35,9.863e-05,2]
[347701236,1736073105640,-500.0,9.863e-05,2]
[347701237,1736073105650,-744.43,9.863e-05,2]
[347701238,1736073105659,-475.91,9.863e-05,2]
[347701239,1736073105669,-503.62,9.863e-05,2]
[347701240,1736073105679,-500.0,9.863e-05,2]
[347701241,1736073105688,-166.96,9.863e-05,2]
[347701242,1736073105698,-567.57,9.863e-05,2]
[347701243,1736073105708,-500.0,9.863e-05,2]
[347701244,1736073105717,-628.26,9.863e-05,2]
[347701245,1736073105726,-500.0,9.863e-05,2]
[347701246,1736073105735,-500.0,9.863e-05,2]
[347701247,1736073105744,-500.0,9.863e-05,2]
[347701248,1736073105754,-500.0,9.863e-05,2]
[347701249,1736073105763,-461.70913783,9.863e-05,2]
[347701250,1736073105773,-500.0,9.863e-05,2]
[347701251,1736073105782,-500.0,9.863e-05,2]
[347701252,1736073105791,-500.0,9.863e-05,2]
[347701253,1736073105800,-500.0,9.863e-05,2]
[347701254,1736073105810,-500.0,9.863e-05,2]
[347701255,1736073105819,-166.89,9.863e-05,2]
[347701256,1736073105828,-782.15,9.863e-05,2]
[347701257,1736073105838,-500.0,9.863e-05,2]
[347701258,1736073105847,-534.18,9.863e-05,2]
[347701259,1736073105856,-500.0,9.863e-05,2]
[347701260,1736073105865,-500.0,9.863e-05,2]
[347701261,1736073105875,-911.54,9.863e-05,2]
[347701262,1736073105884,-500.5735156,9.863e-05,2]
[347701263,1736073105893,-500.0,9.863e-05,2]
[347701264,1736073105902,-500.0,9.863e-05,2]
[347701265,1736073105911,-1041.87,9.863e-05,2]
[347701266,1736073105921,-500.0,9.863e-05,2]
[347701267,1736073105930,-500.0,9.863e-05,2]
[347701268,1736073105939,-280.56,9.863e-05,2]
[347701269,1736073105948,-673.47,9.863e-05,2]
[347701270,1736073105957,-500.0,9.863e-05,2]
[347701271,1736073105966,-500.0,9.863e-05,2]
[347701272,1736073105975,-500.0,9.863e-05,2]
[347701273,1736073105985,-1486.24,9.863e-05,2]
[347701274,1736073105995,-500.0,9.863e-05,2]
[347701275,1736073106004,-500.0,9.863e-05,2]
[347701276,1736073106013,-500.0,9.863e-05,2]
[347701277,1736073106023,-764.66,9.863e-05,2]
[347701278,1736073106032,-500.0,9.863e-05,2]
[347701279,1736073106041,-500.0,9.863e-05,2]
[347701280,1736073106051,-500.0,9.863e-05,2]
[347701281,1736073106061,-500.0,9.863e-05,2]
[347701282,1736073106070,-500.0,9.863e-05,2]
[347701283,1736073106079,-500.0,9.863e-05,2]
[347701284,1736073106089,-1178.21,9.863e-05,2]
[347701285,1736073106098,-303.38,9.863e-05,2]
[347701286,1736073106108,-500.0,9.863e-05,2]
[347701287,1736073106117,-725.21,9.863e-05,2]
[347701288,1736073106126,-500.0,9.863e-05,2]
[347701289,1736073106135,-515.39,9.863e-05,2]
[347701290,1736073106144,-2078.88,9.863e-05,2]
[347701291,1736073106154,-500.0,9.863e-05,2]
[347701292,1736073106163,-500.0,9.863e-05,2]
[347701293,1736073106173,-501.64,9.863e-05,2]
[347701294,1736073106182,-500.0,9.863e-05,2]
[347701295,1736073106191,-500.0,9.863e-05,2]
[347701296,1736073106200,-1137.07,9.863e-05,2]
[347701297,1736073106209,-500.0,9.863e-05,2]
[347701298,1736073106218,-500.0,9.863e-05,2]
[347701299,1736073106227,-500.0,9.863e-05,2]
[347701300,1736073106236,-784.28,9.863e-05,2]
[347701301,1736073106246,-500.0,9.863e-05,2]
[347701302,1736073106255,-1137.42,9.863e-05,2]
[347701303,1736073106264,-1588.7,9.863e-05,2]
[347701304,1736073106274,-524.3,9.863e-05,2]
[347701305,1736073106283,-500.0,9.863e-05,2]
[347701306,1736073106292,-500.0,9.863e-05,2]
[347701307,1736073106304,-860.54,9.863e-05,2]
[347701308,1736073106313,-538.99,9.863e-05,2]
[347701309,1736073106323,-852.42,9.863e-05,2]
[347701310,1736073106332,-500.0,9.863e-05,2]
[347701311,1736073106340,-500.0,9.863e-05,2]
[347701312,1736073106350,-843.67,9.863e-05,2]
[347701313,1736073106359,-500.0,9.863e-05,2]
[347701314,1736073106368,-522.78,9.863e-05,2]
[347701315,1736073106378,-500.0,9.863e-05,2]
[347701316,1736073106386,-500.0,9.863e-05,2]
[347701317,1736073106395,-500.0,9.863e-05,2]
[347701318,1736073106406,-500.0,9.863e-05,2]
[347701319,1736073106419,-502.11337471,9.863e-05,2]
[347701320,1736073106429,-500.0,9.863e-05,2]
[347701321,1736073106439,-500.0,9.863e-05,2]
[347701322,1736073106448,-803.57,9.863e-05,2]
[347701323,1736073106457,-862.09,9.863e-05,2]
[347701324,1736073106466,-938.47,9.863e-05,2]
[347701325,1736073106476,-500.0,9.863e-05,2]
[347701326,1736073106485,-500.0,9.863e-05,2]
[347701327,1736073106494,-500.0,9.863e-05,2]
[347701328,1736073106503,-500.0,9.863e-05,2]
[347701329,1736073106514,-500.0,9.863e-05,2]
[347701330,1736073106523,-500.0,9.863e-05,2]
[347701331,1736073106533,-500.0,9.863e-05,2]
[347701332,1736073106542,-500.0,9.863e-05,2]
[347701333,1736073106553,-500.0,9.863e-05,2]
[347701334,1736073106562,-500.0,9.863e-05,2]
[347701335,1736073106572,-500.0,9.863e-05,2]
[347701336,1736073106581,-500.0,9.863e-05,2]
[347701337,1736073106591,-524.57745042,9.863e-05,2]
[347701338,1736073106600,-500.0,9.863e-05,2]
[347701339,1736073106609,-500.0,9.863e-05,2]
[347701340,1736073106618,-1559.17,9.863e-05,2]
[347701341,1736073106633,-500.0,9.863e-05,2]
[347701342,1736073106642,-500.0,9.863e-05,2]
[347701343,1736073106651,-500.0,9.863e-05,2]
[347701344,1736073106662,-500.0,9.863e-05,2]
[347701345,1736073106672,-521.81,9.863e-05,2]
[347701346,1736073106682,-500.0,9.863e-05,2]
[347701347,1736073106691,-713.73,9.863e-05,2]
[347701348,1736073106700,-500.0,9.863e-05,2]
[347701349,1736073106711,-526.32387161,9.863e-05,2]
[347701350,1736073106720,-500.0,9.863e-05,2]
[347701351,1736073106730,-708.64,9.863e-05,2]
[347701352,1736073106740,-500.0,9.863e-05,2]
[347701353,1736073106750,-1654.63,9.863e-05,2]
[347701354,1736073106760,-500.0,9.863e-05,2]